fUST/lending_fUST_20250408
["ID","MTS","AMOUNT","RATE_DAILY","PERIOD"]
[357399473,1744043470634,-500.0,0.00028219,7]
[357399474,1744043470643,-706.42,0.00028219,7]
[357399475,1744043470652,-500.0,0.00028219,7]
[357399476,1744043470665,-1000.0,0.00028219,7]
[357399477,1744043470675,-500.0,0.00028219,7]
[357399478,1744043470685,-500.0,0.00028219,7]
[357399479,1744043470695,-634.12,0.00028219,7]
[357399480,1744043470705,-221.399843,0.00028219,7]
[357399481,1744043470715,-420.04,0.00028219,28]
[357399482,1744043470725,-221.399843,0.00028219,7]
[357399483,1744043470734,-501.94479604,0.00028219,7]
[357399484,1744043470744,-221.399843,0.00028219,7]
[357399485,1744043470754,-221.399843,0.00028219,7]
[357399486,1744043470763,-500.0,0.00028219,7]
[357399487,1744043470773,-651.83,0.00028219,7]
[357399488,1744043470783,-500.0,0.00028219,7]
[357399489,1744043470792,-500.0,0.00028219,7]
[357399490,1744043470802,-500.0,0.00028219,7]
[357399491,1744043470812,-500.0,0.00028219,7]
[357399492,1744043470822,-500.0,0.00028219,7]
[357399493,1744043470832,-805.7,0.00028219,7]
[357399494,1744043470842,-500.0,0.00028219,7]
[357399495,1744043470851,-557.12654495,0.00028219,7]
[357399496,1744043470861,-500.0,0.00028219,7]
[357399497,1744043470871,-500.0,0.00028219,7]
[357399498,1744043470881,-500.0,0.00028219,7]
[357399499,1744043470890,-500.0,0.00028219,7]
[357399500,1744043470900,-500.0,0.00028219,7]
[357399501,1744043470911,-200.0,0.00028219,7]
[357399502,1744043470921,-587.521375,0.00028219,7]
[357399503,1744043470931,-587.521375,0.00028219,7]
[357399504,1744043470941,-500.0,0.00028219,7]
[357399505,1744043470950,-587.521375,0.00028219,7]
[357399506,1744043470960,-500.0,0.00028219,7]
[357399507,1744043470969,-500.0,0.00028219,7]
[357399508,1744043470979,-552.3050606,0.00028219,7]
[357399509,1744043470989,-587.521375,0.00028219,7]
[357399510,1744043470998,-587.521375,0.00028219,7]
[357399511,1744043471008,-587.521375,0.00028219,7]
[357399512,1744043471017,-500.0,0.00028219,7]
[357399513,1744043471027,-521.55,0.00028219,7]
[357399514,1744043471036,-595.14,0.00028219,7]
[357399515,1744043471045,-372.07908832,0.00028219,7]
[357399516,1744043471055,-500.0,0.00028219,7]
[357399517,1744043471065,-500.0,0.00028219,7]
[357399518,1744043471074,-471.22299166,0.00028219,7]
[357399519,1744043471084,-151.0,0.00028219,7]
[357399520,1744043471093,-500.0,0.00028219,7]
[357399521,1744043471103,-151.0,0.00028219,7]
[357399522,1744043471114,-151.0,0.00028219,7]
[357399523,1744043471123,-161.464384,0.00028219,7]
[357399524,1744043471132,-579.739422,0.00028219,7]
[357399525,1744043471142,-579.739422,0.00028219,7]
[357399526,1744043471152,-500.0,0.00028219,7]
[357399527,1744043471164,-579.739422,0.00028219,7]
[357399528,1744043471174,-629.56,0.00028219,7]
[357399529,1744043471184,-579.739422,0.00028219,7]
[357399530,1744043471193,-500.0,0.00028219,7]
[357399531,1744043471203,-500.0,0.00028219,7]
[357399532,1744043471212,-500.0,0.00028219,7]
[357399533,1744043471222,-500.0,0.00028219,7]
[357399534,1744043471232,-151.0,0.00028219,7]
[357399535,1744043471242,-151.0,0.00028219,7]
[357399536,1744043471252,-500.0,0.00028219,7]
[357399537,1744043471267,-803.46,0.00028219,7]
[357399538,1744043471277,-500.0,0.00028219,7]
[357399539,1744043471287,-568.37,0.00028219,7]
[357399540,1744043471297,-500.0,0.00028219,7]
[357399541,1744043471307,-500.0,0.00028219,7]
[357399542,1744043471317,-500.0,0.00028219,7]
[357399543,1744043471327,-167.063115,0.00028219,7]
[357399544,1744043471339,-167.063115,0.00028219,7]
[357399545,1744043471349,-500.0,0.00028219,7]
[357399546,1744043471359,-151.0,0.00028219,7]
[357399547,1744043471369,-167.063115,0.00028219,7]
[357399548,1744043471379,-167.063119,0.00028219,7]
[357399549,1744043471388,-500.0,0.00028219,7]
[357399550,1744043471398,-715.09,0.00028219,7]
[357399551,1744043471409,-500.0,0.00028219,7]
[357399552,1744043471420,-696.36,0.00028219,7]
[357399553,1744043471431,-500.0,0.00028219,7]
[357399554,1744043471441,-500.0,0.00028219,7]
[357399555,1744043471450,-853.51,0.00028219,7]
[357399556,1744043471461,-500.0,0.00028219,3]
[357399557,1744043471472,-500.0,0.00028219,7]
[357399558,1744043471482,-1131.28,0.00028219,7]
[357399559,1744043471492,-500.0,0.00028219,7]
[357399560,1744043471501,-392.33396003,0.00028219,7]
[357399561,1744043471511,-500.0,0.00028219,7]
[357399562,1744043471521,-500.0,0.00028219,7]
[357399563,1744043471531,-584.17,0.00028219,7]
[357399564,1744043471541,-807.39,0.00028219,7]
[357399565,1744043471551,-868.68,0.00028219,7]
[357399566,1744043471561,-558.01,0.00028219,7]
[357399567,1744043471571,-500.0,0.00028219,7]
[357399568,1744043471581,-500.0,0.00028219,7]
[357399569,1744043471591,-500.0,0.00028219,7]
[357399570,1744043471601,-500.0,0.00028219,7]
[357399571,1744043471611,-500.0,0.00028219,7]
[357399572,1744043471621,-500.0,0.00028219,7]
[357399573,1744043471631,-500.0,0.00028219,7]
[357399574,1744043471641,-500.0,0.00028219,7]
[357399575,1744043471651,-500.0,0.00028219,7]
[357399576,1744043471661,-500.0,0.00028219,7]
[357399577,1744043471671,-581.99222784,0.00028219,7]
[357399578,1744043471680,-519.04,0.00028219,7]
[357399579,1744043471690,-500.0,0.00028219,7]
[357399580,1744043471700,-500.0,0.00028219,7]
[357399581,1744043471710,-541.28,0.00028219,7]
[357399582,1744043471720,-500.0,0.00028219,7]
[357399583,1744043471729,-625.14,0.00028219,7]
[357399584,1744043471738,-613.56,0.00028219,7]
[357399585,1744043471747,-738.73,0.00028219,7]
[357399586,1744043471757,-500.0,0.00028219,7]
[357399587,1744043471767,-500.0,0.00028219,7]
[357399588,1744043471777,-500.0,0.00028219,7]
[357399589,1744043471786,-921.42,0.00028219,7]
[357399590,1744043471796,-500.0,0.00028219,7]
[357399591,1744043471805,-500.0,0.00028219,7]
[357399592,1744043471815,-500.0,0.00028219,7]
[357399593,1744043471824,-1031.34,0.00028219,7]
[357399594,1744043471834,-500.0,0.00028219,7]
[357399595,1744043471843,-954.0,0.00028219,7]
[357399596,1744043471852,-537.66,0.00028219,7]
[357399597,1744043471861,-500.0,0.00028219,7]
[357399598,1744043471871,-504.4,0.00028219,7]
[357399599,1744043471881,-500.0,0.00028219,7]
[357399600,1744043471891,-500.0,0.00028219,7]
[357399601,1744043471900,-500.0,0.00028219,7]
[357399602,1744043471912,-500.0,0.00028219,7]
[357399603,1744043471921,-500.0,0.00028219,7]
[357399604,1744043471932,-653.51,0.00028219,7]
[357399605,1744043471941,-500.0,0.00028219,7]
[357399606,1744043471954,-1251.36,0.00028219,7]
[357399607,1744043471963,-500.0,0.00028219,7]
[357399608,1744043472114,-500.0,0.00028219,7]
[357399609,1744043472124,-500.0,0.00028219,7]
[357399610,1744043472134,-500.0,0.00028219,7]
[357399611,1744043472143,-500.0,0.00028219,7]
[357399612,1744043472153,-1097.07,0.00028219,7]
[357399613,1744043472165,-500.0,0.00028219,7]
[357399614,1744043472174,-500.0,0.00028219,7]
[357399615,1744043472184,-500.0,0.00028219,7]
[357399616,1744043472194,-1674.22,0.00028219,7]
[357399617,1744043472204,-1185.53,0.00028219,7]
[357399618,1744043472214,-527.03443778,0.00028219,7]
[357399619,1744043472224,-500.0,0.00028219,7]
[357399620,1744043472233,-530.96,0.00028219,7]
[357399621,1744043472244,-166.95859908,0.00028219,7]
[357399622,1744043472258,-500.0,0.00028219,7]
[357399623,1744043472273,-500.0,0.00028219,7]
[357399624,1744043472282,-500.0,0.00028219,7]
[357399625,1744043472292,-2880.69,0.00028219,7]
[357399626,1744043472302,-1148.45,0.00028219,7]
[357399627,1744043472311,-500.0,0.00028219,7]
[357399628,1744043472321,-500.0,0.00028219,7]
[357399629,1744043472331,-500.0,0.00028219,7]
[357399630,1744043472340,-517.96,0.00028219,7]
[357399631,1744043472351,-500.0,0.00028219,7]
[357399632,1744043472360,-648.47,0.00028219,7]
[357399633,1744043472370,-500.0,0.00028219,7]
[357399634,1744043472379,-500.0,0.00028219,7]
[357399635,1744043472389,-3601.7,0.00028219,2]
[357399636,1744043472399,-500.0,0.00028219,7]
[357399637,1744043472408,-975.47,0.00028219,7]
[357399638,1744043472418,-500.0,0.00028219,7]
[357399639,1744043472428,-889.71,0.00028219,7]
[357399640,1744043472438,-504.84378516,0.00028219,7]
[357399641,1744043472448,-500.0,0.00028219,7]
[357399642,1744043472457,-500.0,0.00028219,7]
[357399643,1744043472467,-500.0,0.00028219,7]
[357399644,1744043472476,-500.0,0.00028219,7]
[357399645,1744043472486,-500.0,0.00028219,7]
[357399646,1744043472495,-500.0,0.00028219,7]
[357399647,1744043472505,-500.0,0.00028219,7]
[357399648,1744043472514,-538.85960571,0.00028219,7]
[357399649,1744043472524,-500.0,0.00028219,7]
[357399650,1744043472533,-500.0,0.00028219,7]
[357399651,1744043472542,-500.0,0.00028219,7]
[357399652,1744043472552,-500.0,0.00028219,7]
[357399653,1744043472561,-500.0,0.00028219,7]
[357399654,1744043472571,-500.0,0.00028219,7]
[357399655,1744043472580,-555.52,0.00028219,7]
[357399656,1744043472589,-500.0,0.00028219,7]
[357399657,1744043472599,-517.27,0.00028219,7]
[357399658,1744043472608,-500.0,0.00028219,7]
[357399659,1744043472618,-500.0,0.00028219,7]
[357399660,1744043472628,-506.16650917,0.00028219,7]
[357399661,1744043472639,-1973.45,0.00028219,7]
[357399662,1744043472648,-500.0,0.00028219,7]
[357399663,1744043472658,-500.0,0.00028219,7]
[357399664,1744043472670,-500.0,0.00028219,7]
[357399665,1744043472680,-500.0,0.00028219,7]
[357399666,1744043472689,-500.0,0.00028219,7]
[357399667,1744043472699,-500.0,0.00028219,7]
[357399668,1744043472709,-500.0,0.00028219,7]
[357399669,1744043472719,-500.0,0.00028219,7]
[357399670,1744043472729,-500.0,0.00028219,7]
[357399671,1744043472739,-500.0,0.00028219,7]
[357399672,1744043472750,-500.0,0.00028219,7]
[357399673,1744043472759,-435.47421213,0.00028219,7]
[357399674,1744043472768,-500.0,0.00028219,7]
[357399675,1744043472778,-500.0,0.00028219,7]
[357399676,1744043472787,-2492.26,0.00028219,7]
[357399677,1744043472797,-1168.38,0.00028219,7]
[357399678,1744043472806,-500.0,0.00028219,7]
[357399679,1744043472816,-500.0,0.00028219,7]
[357399680,1744043472825,-544.04,0.00028219,7]
[357399681,1744043472834,-500.0,0.00028219,7]
[357399682,1744043472845,-893.68,0.00028219,7]
[357399683,1744043472854,-500.0,0.00028219,7]
[357399684,1744043472864,-510.45166074,0.00028219,7]
[357399685,1744043472874,-500.0,0.00028219,7]
[357399686,1744043472883,-500.0,0.00028219,7]
[357399687,1744043472896,-527.78,0.00028219,7]
[357399688,1744043472906,-500.0,0.00028219,7]
[357399689,1744043472919,-500.0,0.00028219,7]
[357399690,1744043472929,-500.0,0.00028219,7]
[357399691,1744043472939,-500.0,0.00028219,7]
[357399692,1744043472948,-959.0,0.00028219,7]
[357399693,1744043472958,-555.55333302,0.00028219,7]
[357399694,1744043472967,-500.0,0.00028219,7]
[357399695,1744043472976,-500.0,0.00028219,7]
[357399696,1744043472987,-500.0,0.00028219,7]
[357399697,1744043472996,-500.0,0.00028219,7]
[357399698,1744043473005,-500.0,0.00028219,7]
[357399699,1744043473015,-500.0,0.00028219,7]
[357399700,1744043473024,-173.03071364,0.00028219,7]
[357399701,1744043473033,-500.0,0.00028219,7]
[357399702,1744043473042,-1188.36,0.00028219,7]
[357399703,1744043473055,-870.31,0.00028219,7]
[357399704,1744043473065,-776.47,0.00028219,7]
[357399705,1744043473075,-500.0,0.00028219,7]
[357399706,1744043473084,-500.0,0.00028219,7]
[357399707,1744043473093,-500.0,0.00028219,7]
[357399708,1744043473103,-543.97,0.00028219,7]
[357399709,1744043473113,-500.0,0.00028219,7]
[357399710,1744043473123,-631.76,0.00028219,7]
[357399711,1744043473132,-661.17,0.00028219,7]
[357399712,1744043473142,-500.0,0.00028219,7]
[357399713,1744043473151,-537.98097564,0.00028219,7]
[357399714,1744043473163,-500.0,0.00028219,7]
[357399715,1744043473173,-500.0,0.00028219,7]
[357399716,1744043473182,-500.0,0.00028219,7]
[357399717,1744043473192,-500.0,0.00028219,7]
[357399718,1744043473201,-500.0,0.00028219,7]
[357399719,1744043473211,-526.59080919,0.00028219,7]
[357399720,1744043473220,-1430.35,0.00028219,7]
[357399721,1744043473230,-500.0,0.00028219,7]
[357399722,1744043473239,-537.85,0.00028219,7]
[357399723,1744043473249,-500.0,0.00028219,7]
[357399724,1744043473262,-919.21,0.00028219,7]
[357399725,1744043473271,-968.25,0.00028219,7]
[357399726,1744043473281,-500.0,0.00028219,7]
[357399727,1744043473291,-500.0,0.00028219,7]
[357399728,1744043473302,-500.0,0.00028219,7]
[357399729,1744043473311,-500.0,0.00028219,7]
[357399730,1744043473320,-948.85,0.00028219,7]
[357399731,1744043473329,-643.27,0.00028219,7]
[357399732,1744043473338,-500.0,0.00028219,7]
[357399733,1744043473348,-500.0,0.00028219,7]
[357399734,1744043473358,-500.0,0.00028219,7]
[357399735,1744043473367,-500.0,0.00028219,7]
[357399736,1744043473377,-1850.52,0.00028219,7]
[357399737,1744043473387,-3403.7,0.00028219,7]
[357399738,1744043473397,-500.0,0.00028219,7]
[357399739,1744043473406,-596.54,0.00028219,7]
[357399740,1744043473420,-500.0,0.00028219,7]
[357399741,1744043473430,-1660.25,0.00028219,7]
[357399742,1744043473439,-500.0,0.00028219,7]
[357399743,1744043473449,-609.75,0.00028219,7]
[357399744,1744043473458,-500.0,0.00028219,7]
[357399745,1744043473468,-500.0,0.00028219,7]
[357399746,1744043473478,-500.0,0.00028219,7]
[357399747,1744043473488,-1762.96,0.00028219,7]
[357399748,1744043473498,-500.0,0.00028219,7]
[357399749,1744043473508,-829.04,0.00028219,7]
[357399750,1744043473519,-500.0,0.00028219,7]
[357399751,1744043473531,-1891.68,0.00028219,7]
[357399752,1744043473541,-500.0,0.00028219,7]
[357399753,1744043473551,-500.0,0.00028219,7]
[357399754,1744043473561,-1168.25,0.00028219,7]
[357399755,1744043473571,-920.1,0.00028219,7]
[357399756,1744043473580,-2888.37,0.00028219,7]
[357399757,1744043473590,-500.0,0.00028219,7]
[357399758,1744043473599,-500.0,0.00028219,7]
[357399759,1744043473609,-678.29,0.00028219,7]
[357399760,1744043473618,-1187.09,0.00028219,7]
[357399761,1744043473627,-500.0,0.00028219,7]
[357399762,1744043473637,-500.0,0.00028219,7]
[357399763,1744043473647,-1198.43,0.00028219,7]
[357399764,1744043473656,-566.96,0.00028219,7]
[357399765,1744043473669,-500.0,0.00028219,7]
[357399766,1744043473678,-500.0,0.00028219,7]
[357399767,1744043473688,-500.0,0.00028219,7]
[357399768,1744043473697,-1398.58,0.00028219,7]
[357399769,1744043473714,-500.0,0.00028219,7]
[357399770,1744043473723,-609.36,0.00028219,7]
[357399771,1744043473732,-500.0,0.00028219,7]
[357399772,1744043473742,-2759.68,0.00028219,7]
[357399773,1744043473752,-500.0,0.00028219,7]
[357399774,1744043473761,-500.0,0.00028219,7]
[357399775,1744043473770,-500.0,0.00028219,7]
[357399776,1744043473780,-500.0,0.00028219,7]
[357399777,1744043473789,-500.0,0.00028219,7]
[357399778,1744043473799,-634.32,0.00028219,7]
[357399779,1744043473809,-1037.91,0.00028219,7]
[357399780,1744043473818,-1837.03,0.00028219,7]
[357399781,1744043473828,-891.74,0.00028219,7]
[357399782,1744043473844,-557.99028269,0.00028219,7]
[357399783,1744043473861,-500.0,0.00028219,7]
[357399784,1744043473871,-2616.65,0.00028219,7]
[357399785,1744043473880,-614.84,0.00028219,7]
[357399786,1744043473890,-500.0,0.00028219,7]
[357399787,1744043473900,-13484.57,0.00028219,7]
[357399788,1744043473912,-873.44,0.00028219,7]
[357399789,1744043473922,-2782.63,0.00028219,7]
[357399790,1744043473932,-500.0,0.00028219,7]
[357399791,1744043473941,-500.0,0.00028219,7]
[357399792,1744043473951,-917.94,0.00028219,7]
[357399793,1744043473960,-500.0,0.00028219,7]
[357399794,1744043473969,-500.0,0.00028219,7]
[357399795,1744043473978,-500.0,0.00028219,7]
[357399796,1744043473988,-500.0,0.00028219,7]
[357399797,1744043473997,-937.4,0.00028219,7]
[357399798,1744043474006,-3222.17,0.00028219,7]
[357399799,1744043474016,-500.0,0.00028219,7]
[357399800,1744043474025,-500.0,0.00028219,7]
[357399801,1744043474034,-500.0,0.00028219,7]
[357399802,1744043474043,-2322.09,0.00028219,7]
[357399803,1744043474053,-500.0,0.00028219,7]
[357399804,1744043474063,-500.0,0.00028219,7]
[357399805,1744043474073,-3718.52,0.00028219,7]
[357399806,1744043474084,-500.0,0.00028219,7]
[357399807,1744043474094,-500.0,0.00028219,7]
[357399808,1744043474104,-200.53504971,0.00028219,7]
[357399809,1744043474114,-500.0,0.00028219,7]
[357399810,1744043474124,-500.0,0.00028219,7]
[357399811,1744043474133,-574.84,0.00028219,7]
[357399812,1744043474143,-500.0,0.00028219,7]
[357399813,1744043474152,-1452.09,0.00028219,7]
[357399814,1744043474163,-500.0,0.00028219,7]
[357399815,1744043474173,-500.0,0.00028219,7]
[357399816,1744043474184,-500.0,0.00028219,7]
[357399817,1744043474194,-760.61,0.00028219,7]
[357399818,1744043474204,-1379.71,0.00028219,7]
[357399819,1744043474214,-500.0,0.00028219,7]
[357399820,1744043474224,-500.0,0.00028219,7]
[357399821,1744043474233,-591.7,0.00028219,7]
[357399822,1744043474243,-500.0,0.00028219,7]
[357399823,1744043474252,-500.0,0.00028219,7]
[357399824,1744043474262,-617.8,0.00028219,7]
[357399825,1744043474275,-500.0,0.00028219,7]
[357399826,1744043474285,-500.0,0.00028219,7]
[357399827,1744043474295,-500.0,0.00028219,7]
[357399828,1744043474305,-2711.38,0.00028219,7]
[357399829,1744043474318,-2175.12,0.00028219,7]
[357399830,1744043474328,-500.0,0.00028219,7]
[357399831,1744043474338,-3307.38,0.00028219,7]
[357399832,1744043474350,-500.0,0.00028219,7]
[357399833,1744043474482,-500.0,0.00028219,7]
[357399834,1744043474494,-500.0,0.00028219,7]
[357399835,1744043474504,-165.7194628,0.00028219,7]
[357399836,1744043474514,-500.0,0.00028219,7]
[357399837,1744043474524,-1039.24,0.00028219,7]
[357399838,1744043474533,-500.0,0.00028219,7]
[357399839,1744043474543,-500.0,0.00028219,7]
[357399840,1744043474553,-500.0,0.00028219,7]
[357399841,1744043474563,-1517.41,0.00028219,7]
[357399842,1744043474572,-1647.84,0.00028219,7]
[357399843,1744043474581,-500.0,0.00028219,7]
[357399844,1744043474591,-2917.45,0.00028219,7]
[357399845,1744043474601,-500.0,0.00028219,7]
[357399846,1744043474610,-500.0,0.00028219,7]
[357399847,1744043474619,-690.19,0.00028219,7]
[357399848,1744043474629,-2702.92,0.00028219,7]
[357399849,1744043474638,-500.0,0.00028219,7]
[357399850,1744043474648,-500.0,0.00028219,7]
[357399851,1744043474657,-2735.19,0.00028219,7]
[357399852,1744043474668,-500.0,0.00028219,7]
[357399853,1744043474678,-500.0,0.00028219,7]
[357399854,1744043474687,-500.0,0.00028219,7]
[357399855,1744043474697,-500.0,0.00028219,7]
[357399856,1744043474706,-755.84,0.00028219,7]
[357399857,1744043474716,-500.0,0.00028219,7]
[357399858,1744043474726,-1545.4,0.00028219,7]
[357399859,1744043474736,-2604.92,0.00028219,7]
[357399860,1744043474745,-500.0,0.00028219,7]
[357399861,1744043474756,-500.0,0.00028219,7]
[357399862,1744043474765,-520.54312149,0.00028219,7]
[357399863,1744043474775,-500.0,0.00028219,7]
[357399864,1744043474785,-500.0,0.00028219,7]
[357399865,1744043474795,-821.95,0.00028219,7]
[357399866,1744043474805,-500.0,0.00028219,7]
[357399867,1744043474815,-500.0,0.00028219,7]
[357399868,1744043474825,-1832.26,0.00028219,7]
[357399869,1744043474834,-3142.48,0.00028219,7]
[357399870,1744043474844,-500.0,0.00028219,7]
[357399871,1744043474854,-555.17660642,0.00028219,7]
[357399872,1744043474864,-554.16,0.00028219,7]
[357399873,1744043474873,-641.79,0.00028219,7]
[357399874,1744043474882,-500.0,0.00028219,7]
[357399875,1744043474892,-1065.57,0.00028219,7]
[357399876,1744043474901,-500.0,0.00028219,7]
[357399877,1744043474913,-552.20911137,0.00028219,7]
[357399878,1744043474922,-616.76,0.00028219,7]
[357399879,1744043474932,-514.63,0.00028219,7]
[357399880,1744043474941,-508.1,0.00028219,7]
[357399881,1744043474951,-3034.79,0.00028219,7]
[357399882,1744043474961,-1680.31,0.00028219,7]
[357399883,1744043474970,-317.7539458,0.00028219,7]
[357399884,1744043474980,-587.24,0.00028219,7]
[357399885,1744043474989,-182.25966934,0.00028219,7]
[357399886,1744043474999,-500.0,0.00028219,7]
[357399887,1744043475008,-1741.21,0.00028219,7]
[357399888,1744043475017,-815.25,0.00028219,7]
[357399889,1744043475027,-500.0,0.00028219,7]
[357399890,1744043475036,-1044.8,0.00028219,7]
[357399891,1744043475046,-500.0,0.00028219,7]
[357399892,1744043475055,-597.57,0.00028219,7]
[357399893,1744043475064,-500.0,0.00028219,7]
[357399894,1744043475074,-532.39,0.00028219,7]
[357399895,1744043475083,-500.0,0.00028219,7]
[357399896,1744043475093,-884.78,0.00028219,7]
[357399897,1744043475103,-500.0,0.00028219,7]
[357399898,1744043475113,-500.0,0.00028219,7]
[357399899,1744043475122,-500.0,0.00028219,7]
[357399900,1744043475131,-1065.11,0.00028219,7]
[357399901,1744043475140,-500.0,0.00028219,7]
[357399902,1744043475150,-500.0,0.00028219,7]
[357399903,1744043475159,-177.98,0.00028219,7]
[357399904,1744043475172,-500.0,0.00028219,7]
[357399905,1744043475182,-383.07493811,0.00028219,7]
[357399906,1744043475191,-500.0,0.00028219,7]
[357399907,1744043475202,-1961.24,0.00028219,7]
[357399908,1744043475212,-500.0,0.00028219,7]
[357399909,1744043475222,-500.0,0.00028219,7]
[357399910,1744043475232,-539.59,0.00028219,7]
[357399911,1744043475242,-500.0,0.00028219,7]
[357399912,1744043475252,-500.0,0.00028219,7]
[357399913,1744043475265,-513.55612192,0.00028219,7]
[357399914,1744043475277,-498.80184552,0.00028219,7]
[357399915,1744043475288,-500.0,0.00028219,7]
[357399916,1744043475303,-676.39,0.00028219,7]
[357399917,1744043475313,-500.0,0.00028219,7]
[357399918,1744043475323,-817.68,0.00028219,7]
[357399919,1744043475333,-500.0,0.00028219,7]
[357399920,1744043475343,-500.0,0.00028219,7]
[357399921,1744043475355,-500.0,0.00028219,7]
[357399922,1744043475367,-549.74,0.00028219,7]
[357399923,1744043475377,-500.0,0.00028219,7]
[357399924,1744043475386,-500.0,0.00028219,7]
[357399925,1744043475397,-2045.97,0.00028219,7]
[357399926,1744043475407,-4755.06,0.00028219,7]
[357399927,1744043475421,-500.0,0.00028219,7]
[357399928,1744043475431,-500.0,0.00028219,7]
[357399929,1744043475441,-500.0,0.00028219,7]
[357399930,1744043475450,-247.03872973,0.00028219,7]
[357399931,1744043475460,-2479.65,0.00028219,7]
[357399932,1744043475470,-1969.04,0.00028219,7]
[357399933,1744043475480,-500.0,0.00028219,7]
[357399934,1744043475490,-3369.17,0.00028219,7]
[357399935,1744043475499,-500.0,0.00028219,7]
[357399936,1744043475509,-500.0,0.00028219,7]
[357399937,1744043475519,-1411.41,0.00028219,7]
[357399938,1744043475528,-500.0,0.00028219,7]
[357399939,1744043475538,-576.77,0.00028219,7]
[357399940,1744043475548,-500.0,0.00028219,7]
[357399941,1744043475558,-578.40598647,0.00028219,7]
[357399942,1744043475568,-921.03,0.00028219,7]
[357399943,1744043475579,-506.66,0.00028219,7]
[357399944,1744043475591,-500.0,0.00028219,7]
[357399945,1744043475604,-215.0738,0.00028272,2]
[357399946,1744043475614,-514.54664532,0.00028273,5]
[357399947,1744043475624,-875.81593026,0.00028279,5]
[357399948,1744043475633,-960.19449504,0.00028279,5]
[357399949,1744043475643,-372.89774125,0.00028279,2]
[357399950,1744043475653,-1000.0,0.00028279,5]
[357399951,1744043475665,-500.0,0.00028279,5]
[357399952,1744043475675,-1020.57652441,0.00028279,5]
[357399953,1744043475685,-1000.0,0.00028279,5]
[357399954,1744043475695,-335.07292993,0.00028279,5]
[357399955,1744043475704,-500.0,0.00028279,5]
[357399956,1744043475714,-1000.0,0.00028279,5]
[357399957,1744043475724,-1000.0,0.00028279,5]
[357399958,1744043475734,-1000.0,0.00028279,2]
[357399959,1744043475744,-500.0,0.00028279,5]
[357399960,1744043475753,-352.97914833,0.00028279,5]
[357399961,1744043475763,-1000.0,0.00028279,2]
[357399962,1744043475772,-1000.0,0.00028279,5]
[357399963,1744043475782,-1000.0,0.00028279,5]
[357399964,1744043475791,-534.1295019,0.00028279,5]
[357399965,1744043475800,-1000.0,0.00028279,5]
[357399966,1744043475810,-1000.0,0.00028279,5]
[357399967,1744043475820,-1000.0,0.00028279,5]
[357399968,1744043475830,-1000.0,0.00028279,5]
[357399969,1744043475839,-250.0,0.00028473,5]
[357399970,1744043475849,-151.0,0.00028493,7]
[357399971,1744043475858,-151.0,0.00028493,7]
[357399972,1744043475868,-151.0,0.00028493,7]